Workbook

Sheet Index
A1: Number | B1: Spreadsheet | C1: Magazine | D1: Title | E1: Folder | F1: File Name | G1: Hyperlink
A2: 1 | B2: =("Lu_Hf_00" & A2) -> Lu_Hf_001 | C2: XXX | D2: XXX | E2: =("C:\Essays\Geo_Dating\Lutetium\") -> C:\Essays\Geo_Dating\Lutetium\ | F2: =("Lutetium_00" & A2 & ".pdf") -> Lutetium_001.pdf | G2: =(E2 & F2) -> C:\Essays\Geo_Dating\Lutetium\Lutetium_001.pdf | H2: =(A2) -> 1 | I2: =(D2 & ", " & C2) -> XXX, XXX
A3: 2 | B3: =("Lu_Hf_00" & A3) -> Lu_Hf_002 | C3: XXX | D3: XXX | E3: =("C:\Essays\Geo_Dating\Lutetium\") -> C:\Essays\Geo_Dating\Lutetium\ | F3: =("Lutetium_00" & A3 & ".pdf") -> Lutetium_002.pdf | G3: C:\Essays\Geo_Dating\Lutetium\Lutetium_002.pdf | H3: 2 | I3: =(D3 & ", " & C3) -> XXX, XXX
A4: 3 | B4: Lu_Hf_003 | C4: XXX | D4: XXX | E4: C:\Essays\Geo_Dating\Lutetium\ | F4: Lutetium_003.pdf | G4: C:\Essays\Geo_Dating\Lutetium\Lutetium_003.pdf | H4: 3 | I4: XXX, XXX
A5: 4 | B5: Lu_Hf_004 | C5: XXX | D5: XXX | E5: C:\Essays\Geo_Dating\Lutetium\ | F5: Lutetium_004.pdf | G5: C:\Essays\Geo_Dating\Lutetium\Lutetium_004.pdf | H5: 4 | I5: XXX, XXX
A6: 5 | B6: Lu_Hf_005 | C6: XXX | D6: XXX | E6: C:\Essays\Geo_Dating\Lutetium\ | F6: Lutetium_005.pdf | G6: C:\Essays\Geo_Dating\Lutetium\Lutetium_005.pdf | H6: 5 | I6: XXX, XXX
A7: 6 | B7: Lu_Hf_006 | C7: XXX | D7: XXX | E7: C:\Essays\Geo_Dating\Lutetium\ | F7: Lutetium_006.pdf | G7: C:\Essays\Geo_Dating\Lutetium\Lutetium_006.pdf | H7: 6 | I7: XXX, XXX
A8: 7 | B8: Lu_Hf_007 | C8: XXX | D8: XXX | E8: C:\Essays\Geo_Dating\Lutetium\ | F8: Lutetium_007.pdf | G8: C:\Essays\Geo_Dating\Lutetium\Lutetium_007.pdf | H8: 7 | I8: XXX, XXX
A9: 8 | B9: Lu_Hf_008 | C9: XXX | D9: XXX | E9: C:\Essays\Geo_Dating\Lutetium\ | F9: Lutetium_008.pdf | G9: C:\Essays\Geo_Dating\Lutetium\Lutetium_008.pdf | H9: 8 | I9: XXX, XXX
A10: 9 | B10: Lu_Hf_009 | C10: XXX | D10: XXX | E10: C:\Essays\Geo_Dating\Lutetium\ | F10: =("Lutetium_00" & A10 & ".pdf") -> Lutetium_009.pdf | G10: C:\Essays\Geo_Dating\Lutetium\Lutetium_009.pdf | H10: 9 | I10: XXX, XXX
A11: 10 | B11: =("Lu_Hf_0" & A11) -> Lu_Hf_010 | C11: XXX | D11: XXX | E11: C:\Essays\Geo_Dating\Lutetium\ | F11: =("Lutetium_0" & A11 & ".pdf") -> Lutetium_010.pdf | G11: C:\Essays\Geo_Dating\Lutetium\Lutetium_010.pdf | H11: 10 | I11: XXX, XXX
A12: 11 | B12: =("Lu_Hf_0" & A12) -> Lu_Hf_011 | C12: XXX | D12: XXX | E12: C:\Essays\Geo_Dating\Lutetium\ | F12: =("Lutetium_0" & A12 & ".pdf") -> Lutetium_011.pdf | G12: C:\Essays\Geo_Dating\Lutetium\Lutetium_011.pdf | H12: 11 | I12: XXX, XXX
A13: 12 | B13: Lu_Hf_012 | C13: XXX | D13: XXX | E13: C:\Essays\Geo_Dating\Lutetium\ | F13: Lutetium_012.pdf | G13: C:\Essays\Geo_Dating\Lutetium\Lutetium_012.pdf | H13: 12 | I13: XXX, XXX
A14: 13 | B14: Lu_Hf_013 | C14: XXX | D14: XXX | E14: C:\Essays\Geo_Dating\Lutetium\ | F14: Lutetium_013.pdf | G14: C:\Essays\Geo_Dating\Lutetium\Lutetium_013.pdf | H14: 13 | I14: XXX, XXX
A15: 14 | B15: Lu_Hf_014 | C15: XXX | D15: XXX | E15: C:\Essays\Geo_Dating\Lutetium\ | F15: Lutetium_014.pdf | G15: C:\Essays\Geo_Dating\Lutetium\Lutetium_014.pdf | H15: 14 | I15: XXX, XXX
A16: 15 | B16: Lu_Hf_015 | C16: XXX | D16: XXX | E16: C:\Essays\Geo_Dating\Lutetium\ | F16: Lutetium_015.pdf | G16: C:\Essays\Geo_Dating\Lutetium\Lutetium_015.pdf | H16: 15 | I16: XXX, XXX
A17: 16 | B17: Lu_Hf_016 | C17: XXX | D17: XXX | E17: C:\Essays\Geo_Dating\Lutetium\ | F17: Lutetium_016.pdf | G17: C:\Essays\Geo_Dating\Lutetium\Lutetium_016.pdf | H17: 16 | I17: XXX, XXX
A18: 17 | B18: Lu_Hf_017 | C18: XXX | D18: XXX | E18: C:\Essays\Geo_Dating\Lutetium\ | F18: Lutetium_017.pdf | G18: C:\Essays\Geo_Dating\Lutetium\Lutetium_017.pdf | H18: 17 | I18: XXX, XXX
A19: 18 | B19: Lu_Hf_018 | C19: XXX | D19: XXX | E19: C:\Essays\Geo_Dating\Lutetium\ | F19: Lutetium_018.pdf | G19: C:\Essays\Geo_Dating\Lutetium\Lutetium_018.pdf | H19: 18 | I19: XXX, XXX
A20: 19 | B20: Lu_Hf_019 | C20: XXX | D20: XXX | E20: C:\Essays\Geo_Dating\Lutetium\ | F20: Lutetium_019.pdf | G20: C:\Essays\Geo_Dating\Lutetium\Lutetium_019.pdf | H20: 19 | I20: XXX, XXX
A21: 20 | B21: Lu_Hf_020 | C21: XXX | D21: XXX | E21: C:\Essays\Geo_Dating\Lutetium\ | F21: Lutetium_020.pdf | G21: C:\Essays\Geo_Dating\Lutetium\Lutetium_020.pdf | H21: 20 | I21: XXX, XXX
A22: 21 | B22: Lu_Hf_021 | C22: XXX | D22: XXX | E22: C:\Essays\Geo_Dating\Lutetium\ | F22: Lutetium_021.pdf | G22: C:\Essays\Geo_Dating\Lutetium\Lutetium_021.pdf | H22: 21 | I22: XXX, XXX
A23: 22 | B23: Lu_Hf_022 | C23: XXX | D23: XXX | E23: C:\Essays\Geo_Dating\Lutetium\ | F23: Lutetium_022.pdf | G23: C:\Essays\Geo_Dating\Lutetium\Lutetium_022.pdf | H23: 22 | I23: XXX, XXX
A24: 23 | B24: Lu_Hf_023 | C24: XXX | D24: XXX | E24: C:\Essays\Geo_Dating\Lutetium\ | F24: Lutetium_023.pdf | G24: C:\Essays\Geo_Dating\Lutetium\Lutetium_023.pdf | H24: 23 | I24: XXX, XXX
A25: 24 | B25: Lu_Hf_024 | C25: XXX | D25: XXX | E25: C:\Essays\Geo_Dating\Lutetium\ | F25: Lutetium_024.pdf | G25: C:\Essays\Geo_Dating\Lutetium\Lutetium_024.pdf | H25: 24 | I25: XXX, XXX
A26: 25 | B26: Lu_Hf_025 | C26: XXX | D26: XXX | E26: C:\Essays\Geo_Dating\Lutetium\ | F26: Lutetium_025.pdf | G26: C:\Essays\Geo_Dating\Lutetium\Lutetium_025.pdf | H26: 25 | I26: XXX, XXX
A27: 26 | B27: Lu_Hf_026 | C27: XXX | D27: XXX | E27: C:\Essays\Geo_Dating\Lutetium\ | F27: Lutetium_026.pdf | G27: C:\Essays\Geo_Dating\Lutetium\Lutetium_026.pdf | H27: 26 | I27: XXX, XXX
A28: 27 | B28: Lu_Hf_027 | C28: XXX | D28: XXX | E28: C:\Essays\Geo_Dating\Lutetium\ | F28: Lutetium_027.pdf | G28: C:\Essays\Geo_Dating\Lutetium\Lutetium_027.pdf | H28: 27 | I28: XXX, XXX
A29: 28 | B29: Lu_Hf_028 | C29: XXX | D29: XXX | E29: C:\Essays\Geo_Dating\Lutetium\ | F29: Lutetium_028.pdf | G29: C:\Essays\Geo_Dating\Lutetium\Lutetium_028.pdf | H29: 28 | I29: XXX, XXX
A30: 29 | B30: Lu_Hf_029 | C30: XXX | D30: XXX | E30: C:\Essays\Geo_Dating\Lutetium\ | F30: Lutetium_029.pdf | G30: C:\Essays\Geo_Dating\Lutetium\Lutetium_029.pdf | H30: 29 | I30: XXX, XXX
A31: 30 | B31: Lu_Hf_030 | C31: XXX | D31: XXX | E31: C:\Essays\Geo_Dating\Lutetium\ | F31: Lutetium_030.pdf | G31: C:\Essays\Geo_Dating\Lutetium\Lutetium_030.pdf | H31: 30 | I31: XXX, XXX
A32: 31 | B32: Lu_Hf_031 | C32: XXX | D32: XXX | E32: C:\Essays\Geo_Dating\Lutetium\ | F32: Lutetium_031.pdf | G32: C:\Essays\Geo_Dating\Lutetium\Lutetium_031.pdf | H32: 31 | I32: XXX, XXX
A33: 32 | B33: Lu_Hf_032 | C33: XXX | D33: XXX | E33: C:\Essays\Geo_Dating\Lutetium\ | F33: Lutetium_032.pdf | G33: C:\Essays\Geo_Dating\Lutetium\Lutetium_032.pdf | H33: 32 | I33: XXX, XXX
A34: 33 | B34: Lu_Hf_033 | C34: XXX | D34: XXX | E34: C:\Essays\Geo_Dating\Lutetium\ | F34: Lutetium_033.pdf | G34: C:\Essays\Geo_Dating\Lutetium\Lutetium_033.pdf | H34: 33 | I34: XXX, XXX
A35: 34 | B35: Lu_Hf_034 | C35: XXX | D35: XXX | E35: C:\Essays\Geo_Dating\Lutetium\ | F35: Lutetium_034.pdf | G35: C:\Essays\Geo_Dating\Lutetium\Lutetium_034.pdf | H35: 34 | I35: XXX, XXX
A36: 35 | B36: Lu_Hf_035 | C36: XXX | D36: XXX | E36: C:\Essays\Geo_Dating\Lutetium\ | F36: Lutetium_035.pdf | G36: C:\Essays\Geo_Dating\Lutetium\Lutetium_035.pdf | H36: 35 | I36: XXX, XXX
A37: 36 | B37: Lu_Hf_036 | C37: XXX | D37: XXX | E37: C:\Essays\Geo_Dating\Lutetium\ | F37: Lutetium_036.pdf | G37: C:\Essays\Geo_Dating\Lutetium\Lutetium_036.pdf | H37: 36 | I37: XXX, XXX
A38: 37 | B38: Lu_Hf_037 | C38: XXX | D38: XXX | E38: C:\Essays\Geo_Dating\Lutetium\ | F38: Lutetium_037.pdf | G38: C:\Essays\Geo_Dating\Lutetium\Lutetium_037.pdf | H38: 37 | I38: XXX, XXX
A39: 38 | B39: Lu_Hf_038 | C39: XXX | D39: XXX | E39: C:\Essays\Geo_Dating\Lutetium\ | F39: Lutetium_038.pdf | G39: C:\Essays\Geo_Dating\Lutetium\Lutetium_038.pdf | H39: 38 | I39: XXX, XXX
A40: 39 | B40: Lu_Hf_039 | C40: XXX | D40: XXX | E40: C:\Essays\Geo_Dating\Lutetium\ | F40: Lutetium_039.pdf | G40: C:\Essays\Geo_Dating\Lutetium\Lutetium_039.pdf | H40: 39 | I40: XXX, XXX
A41: 40 | B41: Lu_Hf_040 | C41: XXX | D41: XXX | E41: C:\Essays\Geo_Dating\Lutetium\ | F41: Lutetium_040.pdf | G41: C:\Essays\Geo_Dating\Lutetium\Lutetium_040.pdf | H41: =(A41-4) -> 36 | I41: XXX, XXX
A42: 41 | B42: Lu_Hf_041 | C42: XXX | D42: XXX | E42: C:\Essays\Geo_Dating\Lutetium\ | F42: Lutetium_041.pdf | G42: C:\Essays\Geo_Dating\Lutetium\Lutetium_041.pdf | H42: 37 | I42: XXX, XXX
A43: 42 | B43: Lu_Hf_042 | C43: XXX | D43: XXX | E43: C:\Essays\Geo_Dating\Lutetium\ | F43: Lutetium_042.pdf | G43: C:\Essays\Geo_Dating\Lutetium\Lutetium_042.pdf | H43: 38 | I43: XXX, XXX
A44: 43 | B44: Lu_Hf_043 | C44: XXX | D44: XXX | E44: C:\Essays\Geo_Dating\Lutetium\ | F44: Lutetium_043.pdf | G44: C:\Essays\Geo_Dating\Lutetium\Lutetium_043.pdf | H44: 39 | I44: XXX, XXX
A45: 44 | B45: Lu_Hf_044 | C45: XXX | D45: XXX | E45: C:\Essays\Geo_Dating\Lutetium\ | F45: Lutetium_044.pdf | G45: C:\Essays\Geo_Dating\Lutetium\Lutetium_044.pdf | H45: 40 | I45: XXX, XXX
A46: 45 | B46: Lu_Hf_045 | C46: XXX | D46: XXX | E46: C:\Essays\Geo_Dating\Lutetium\ | F46: Lutetium_045.pdf | G46: C:\Essays\Geo_Dating\Lutetium\Lutetium_045.pdf | H46: 41 | I46: XXX, XXX
A47: 46 | B47: Lu_Hf_046 | C47: XXX | D47: XXX | E47: C:\Essays\Geo_Dating\Lutetium\ | F47: Lutetium_046.pdf | G47: C:\Essays\Geo_Dating\Lutetium\Lutetium_046.pdf | H47: 42 | I47: XXX, XXX
A48: 47 | B48: Lu_Hf_047 | C48: XXX | D48: XXX | E48: C:\Essays\Geo_Dating\Lutetium\ | F48: Lutetium_047.pdf | G48: C:\Essays\Geo_Dating\Lutetium\Lutetium_047.pdf | H48: 43 | I48: XXX, XXX
A49: 48 | B49: Lu_Hf_048 | C49: XXX | D49: XXX | E49: C:\Essays\Geo_Dating\Lutetium\ | F49: Lutetium_048.pdf | G49: C:\Essays\Geo_Dating\Lutetium\Lutetium_048.pdf | H49: 44 | I49: XXX, XXX
A50: 49 | B50: Lu_Hf_049 | C50: XXX | D50: XXX | E50: C:\Essays\Geo_Dating\Lutetium\ | F50: Lutetium_049.pdf | G50: C:\Essays\Geo_Dating\Lutetium\Lutetium_049.pdf | H50: 45 | I50: XXX, XXX
A51: 50 | B51: Lu_Hf_050 | C51: XXX | D51: XXX | E51: C:\Essays\Geo_Dating\Lutetium\ | F51: Lutetium_050.pdf | G51: C:\Essays\Geo_Dating\Lutetium\Lutetium_050.pdf | H51: 46 | I51: XXX, XXX

Sheet Lu_Hf_01
A1: Lutetium
A2: Hafnium | B2: Initial | C2: Today | D2: Today | E2: The Ratio | F2: Half | G2: Decay | H2: 2.303/Delta | I2: Age | J2: Age | K2: Age | L2: Model Age | M2: Model Age | N2: Model Age
A3: Dating | B3: 176Hf/177Hf | C3: 176Hf/177Hf | D3: 176Lu/177Hf | E3: Plus One | F3: Life | G3: Constant | H3: Constant | I3: Years | J3: Million Years | K3: Billion Years | L3: Million Years | M3: % Difference | N3: Difference
B4: 0.725 | C4: 0.80983 | D4: 1.875 | E4: =1+((C4-B4)/D4) -> 1.045242667 | F4: 37300000000 | G4: =(0.693/F4) -> 1.857908847e-11 | H4: =(2.303/G4) -> 1.239565657e+11 | I4: =(LOG(E4))*(H4) -> 2382089345 | J4: =(I4/1000000) -> 2382.089345 | K4: =(J4/1000) -> 2.382089345
B5: 0.725 | C5: 0.83433 | D5: 2.402 | E5: =1+((C5-B5)/D5) -> 1.045516236 | F5: 37300000000 | G5: 1.857908847e-11 | H5: =(2.303/G5) -> 1.239565657e+11 | I5: =(LOG(E5))*(H5) -> 2396177303 | J5: =(I5/1000000) -> 2396.177303 | K5: =(J5/1000) -> 2.396177303
B6: 0.725 | C6: 0.79435 | D6: 1.385 | E6: 1.050072202 | F6: 37300000000 | G6: 1.857908847e-11 | H6: 1.239565657e+11 | I6: 2630254430 | J6: 2630.25443 | K6: 2.63025443
B7: 0.725 | C7: 0.80122 | D7: 1.872 | E7: 1.040715812 | F7: 37300000000 | G7: 1.857908847e-11 | H7: 1.239565657e+11 | I7: 2148434162 | J7: 2148.434162 | K7: 2.148434162
B8: 0.725 | C8: 0.80164 | D8: 1.715 | E8: 1.044688047 | F8: 37300000000 | G8: 1.857908847e-11 | H8: 1.239565657e+11 | I8: 2353516893 | J8: 2353.516893 | K8: 2.353516893
B9: 0.725 | C9: 0.82572 | D9: 2.21 | E9: 1.045574661 | F9: 37300000000 | G9: 1.857908847e-11 | H9: 1.239565657e+11 | I9: 2399185480 | J9: 2399.18548 | K9: 2.39918548
B10: 0.725 | C10: 0.82739 | D10: 2.294 | E10: 1.044633827 | F10: 37300000000 | G10: 1.857908847e-11 | H10: 1.239565657e+11 | I10: 2350722856 | J10: 2350.722856 | K10: 2.350722856
B11: 0.725 | C11: 0.79991 | D11: 1.667 | E11: 1.044937013 | F11: 37300000000 | G11: 1.857908847e-11 | H11: 1.239565657e+11 | I11: 2366344789 | J11: 2366.344789 | K11: 2.366344789
B12: 0.725 | C12: 0.83517 | D12: 2.47 | E12: 1.044603239 | F12: 37300000000 | G12: 1.857908847e-11 | H12: 1.239565657e+11 | I12: 2349146500 | J12: 2349.1465 | K12: 2.3491465
B13: 0.725 | C13: 0.82555 | D13: 2.199 | E13: 1.04572533 | F13: 37300000000 | G13: 1.857908847e-11 | H13: 1.239565657e+11 | I13: 2406942441 | J13: 2406.942441 | K13: 2.406942441
B14: 0.725 | C14: 0.83 | D14: 2.348 | E14: 1.04471891 | F14: 37300000000 | G14: 1.857908847e-11 | H14: 1.239565657e+11 | I14: 2355107269 | J14: 2355.107269 | K14: 2.355107269
B15: 0.725 | C15: 0.82828 | D15: 2.342 | E15: 1.044099061 | F15: 37300000000 | G15: 1.857908847e-11 | H15: 1.239565657e+11 | I15: 2323157390 | J15: 2323.15739 | K15: 2.32315739
B16: 0.725 | C16: 0.74362 | D16: 0.2588 | E16: 1.07194745 | F16: 37300000000 | G16: 1.857908847e-11 | H16: 1.239565657e+11 | I16: 3740202863 | J16: 3740.202863 | K16: 3.740202863
B17: 0.725 | C17: 0.74504 | D17: 0.2913 | E17: 1.068795057 | F17: 37300000000 | G17: 1.857908847e-11 | H17: 1.239565657e+11 | I17: 3581655109 | J17: 3581.655109 | K17: 3.581655109
B18: 0.725 | C18: 0.76512 | D18: 0.8839 | E18: 1.04538975 | F18: 37300000000 | G18: 1.857908847e-11 | H18: 1.239565657e+11 | I18: 2389664116 | J18: 2389.664116 | K18: 2.389664116
B19: 0.725 | C19: 0.82863 | D19: 2.639 | E19: 1.039268662 | F19: 37300000000 | G19: 1.857908847e-11 | H19: 1.239565657e+11 | I19: 2073524602 | J19: 2073.524602 | K19: 2.073524602
B20: 0.725 | C20: 0.83196 | D20: 2.74 | E20: 1.039036496 | F20: 37300000000 | G20: 1.857908847e-11 | H20: 1.239565657e+11 | I20: 2061497162 | J20: 2061.497162 | K20: 2.061497162
B21: 0.725 | C21: 0.82057 | D21: 2.432 | E21: 1.039296875 | F21: 37300000000 | G21: 1.857908847e-11 | H21: 1.239565657e+11 | I21: 2074985983 | J21: 2074.985983 | K21: 2.074985983
B22: 0.725 | C22: 0.77075 | D22: 0.7609 | E22: 1.060126166 | F22: 37300000000 | G22: 1.857908847e-11 | H22: 1.239565657e+11 | I22: 3143235312 | J22: 3143.235312 | K22: 3.143235312
B23: 0.725 | C23: 0.75589 | D23: 0.4589 | E23: 1.06731314 | F23: 37300000000 | G23: 1.857908847e-11 | H23: 1.239565657e+11 | I23: 3506961335 | J23: 3506.961335 | K23: 3.506961335
B24: 0.725 | C24: 0.76369 | D24: 0.5342 | E24: 1.072426058 | F24: 37300000000 | G24: 1.857908847e-11 | H24: 1.239565657e+11 | I24: 3764233389 | J24: 3764.233389 | K24: 3.764233389
B25: 0.725 | C25: 0.79321 | D25: 1.399 | E25: 1.048756254 | F25: 37300000000 | G25: 1.857908847e-11 | H25: 1.239565657e+11 | I25: 2562747931 | J25: 2562.747931 | K25: 2.562747931
B26: 0.725 | C26: 0.70884 | D26: 0.05603 | E26: 0.7115830805 | F26: 37300000000 | G26: 1.857908847e-11 | H26: 1.239565657e+11 | I26: -1.831760548e+10 | J26: -18317.60548 | K26: -18.31760548
B27: 0.725 | C27: 0.76608 | D27: 0.9137 | E27: 1.044960053 | F27: 37300000000 | G27: 1.857908847e-11 | H27: 1.239565657e+11 | I27: 2367531761 | J27: 2367.531761 | K27: 2.367531761
B28: 0.725 | C28: 0.73648 | D28: 0.6895 | E28: 1.016649746 | F28: 37300000000 | G28: 1.857908847e-11 | H28: 1.239565657e+11 | I28: 888936730.9 | J28: 888.9367309 | K28: 0.8889367309
B29: 0.725 | C29: 0.76422 | D29: 1.486 | E29: 1.026393001 | F29: 37300000000 | G29: 1.857908847e-11 | H29: 1.239565657e+11 | I29: 1402405173 | J29: 1402.405173 | K29: 1.402405173
B30: 0.725 | C30: 0.71024 | D30: 0.08304 | E30: 0.8222543353 | F30: 37300000000 | G30: 1.857908847e-11 | H30: 1.239565657e+11 | I30: -1.053554303e+10 | J30: -10535.54303 | K30: -10.53554303
B31: 0.725 | C31: 0.70565 | D31: 0.02464 | E31: 0.2146915584 | F31: 37300000000 | G31: 1.857908847e-11 | H31: 1.239565657e+11 | I31: -8.282592172e+10 | J31: -82825.92172 | K31: -82.82592172
B32: 0.725 | C32: 0.70654 | D32: 0.04032 | E32: 0.5421626984 | F32: 37300000000 | G32: 1.857908847e-11 | H32: 1.239565657e+11 | I32: -3.295637746e+10 | J32: -32956.37746 | K32: -32.95637746
B33: 0.725 | C33: 0.7459 | D33: 1.025 | E33: 1.020390244 | F33: 37300000000 | G33: 1.857908847e-11 | H33: 1.239565657e+11 | I33: 1086640145 | J33: 1086.640145 | K33: 1.086640145
I34: Average | J34: =AVERAGE(J4:J33) -> -2717.671574 | K34: =AVERAGE(K4:K33) -> -2.717671574
I35: Maximum | J35: =MAX(J4:J34) -> 3764.233389 | K35: =MAX(K4:K34) -> 3.764233389
I36: Minimum | J36: =MIN(J4:J35) -> -82825.92172 | K36: =MIN(K4:K35) -> -82.82592172
I37: Difference | J37: =(J35+ABS(J36)) -> 86590.15511 | K37: =(K35+ABS(K36)) -> 86.59015511
